bitfinex/quotes_BTCUSD_20260125
["timestamp","ask_amount","ask_price","bid_price","bid_amount"]
[1769347693660,0.35901244,88737.0,88718.0,0.36984255]
[1769347693950,0.81582375,88736.0,88718.0,0.36984255]
[1769347696029,0.39303244,88736.0,88718.0,4.734e-05]
[1769347696240,0.81582375,88735.0,88718.0,4.734e-05]
[1769347696626,0.81582375,88735.0,88718.0,0.38585412]
[1769347696771,0.81582375,88735.0,88718.0,0.4974569]
[1769347697001,0.81582375,88747.0,88720.0,0.01127141]
[1769347697227,0.17316,88755.0,88729.0,0.38580678]
[1769347697438,0.17316,88755.0,88723.0,0.01127103]
[1769347697439,0.00806148,88754.0,88732.0,1.09340045]
[1769347697642,1.12870729,88754.0,88734.0,0.36264678]
[1769347697859,0.39303244,88751.0,88734.0,0.34723671]
[1769347698192,0.17316,88755.0,88730.0,1.09340045]
[1769347698193,0.39303244,88748.0,88730.0,1.09340045]
[1769347698399,1.12990752,88747.0,88730.0,1.09340045]
[1769347698529,1.12064581,88747.0,88730.0,1.09340045]
[1769347698740,0.00926171,88746.0,88730.0,1.09340045]
[1769347701597,0.00926171,88746.0,88730.0,1.20500323]
[1769347701800,0.00926171,88746.0,88731.0,0.00064793]
[1769347703212,0.00926171,88746.0,88730.0,1.43985516]
[1769347703657,0.39303244,88748.0,88726.0,0.01127065]
[1769347703875,0.39303244,88748.0,88731.0,1.09340045]
[1769347704074,0.39303244,88748.0,88732.0,0.42431997]
[1769347704227,0.39303244,88748.0,88732.0,0.38580678]
[1769347704427,0.39303244,88748.0,88733.0,1.09340045]
[1769347706013,0.17316,88750.0,88733.0,1.09340045]
[1769347706220,0.17316,88750.0,88733.0,1.47920723]
[1769347707277,0.000271,88756.0,88735.0,1.09340045]
[1769347707472,0.000271,88756.0,88730.0,0.01127014]
[1769347707473,0.17316,88755.0,88736.0,0.10934005]
[1769347707680,0.17316,88755.0,88740.0,0.38580678]
[1769347707979,0.000271,88756.0,88743.0,1.09340045]
[1769347708199,0.01018064,88756.0,88744.0,0.38580678]
[1769347712061,0.01018064,88756.0,88744.0,0.22453658]
[1769347712246,0.01018064,88756.0,88744.0,0.11168978]
[1769347712463,0.01018064,88756.0,88743.0,1.09340045]
[1769347717283,0.01018064,88756.0,88739.0,0.38580678]
[1769347718257,0.37859702,88756.0,88739.0,0.38580678]
[1769347718475,0.36841638,88755.0,88739.0,0.38580678]
[1769347718698,0.36841638,88751.0,88731.0,0.37499321]
[1769347718967,0.36841638,88749.0,88731.0,0.37499321]
[1769347719181,1.47553225,88747.0,88731.0,0.37499321]
[1769347719453,0.000271,88756.0,88723.0,0.01127103]
[1769347719700,0.000271,88756.0,88723.0,0.37499321]
[1769347719701,4.27,88755.0,88723.0,0.37499321]
[1769347719878,0.36841638,88753.0,88723.0,0.37499321]
[1769347720085,1.10711587,88750.0,88723.0,0.37499321]
[1769347720257,0.36841638,88747.0,88723.0,0.37499321]
[1769347720495,0.36841638,88743.0,88723.0,0.37499321]
[1769347720718,1.47553225,88741.0,88723.0,0.37499321]
[1769347721930,0.000271,88756.0,88726.0,0.37499321]
[1769347722230,1.10711587,88754.0,88731.0,1.08735151]
[1769347722474,1.59817722,88753.0,88733.0,1.08735151]
[1769347722649,0.36841638,88752.0,88733.0,1.08735151]
[1769347722852,0.00990964,88751.0,88733.0,1.08735151]
[1769347724001,0.17316,88752.0,88737.0,1.08735151]
[1769347724214,0.17316,88752.0,88739.0,1.08735151]
[1769347726465,0.1732,88753.0,88739.0,1.08735151]
[1769347727008,0.1732,88753.0,88740.0,0.06965807]
[1769347727857,0.00990964,88755.0,88740.0,0.06965807]
[1769347728056,0.1732,88752.0,88740.0,0.06965807]
[1769347728261,0.1732,88752.0,88739.0,1.08735151]
[1769347729106,0.00990964,88755.0,88739.0,1.08735151]
[1769347729303,0.1732,88754.0,88739.0,1.08735151]
[1769347729710,0.00990964,88753.0,88739.0,1.08735151]
[1769347736517,0.00990964,88753.0,88740.0,0.00023751]
[1769347737818,0.00990964,88753.0,88740.0,0.00136439]
[1769347740235,0.1732,88754.0,88740.0,0.00136439]
[1769347742004,0.000271,88756.0,88740.0,0.00136439]
[1769347742150,0.173471,88756.0,88740.0,1.08735151]
[1769347742373,0.173471,88756.0,88742.0,1.46234472]
[1769347742575,0.173471,88756.0,88744.0,1.08735151]
[1769347742813,0.000271,88756.0,88745.0,0.00136431]
[1769347743057,0.000271,88756.0,88737.0,1.10454079]
[1769347743294,0.000271,88756.0,88738.0,1.50023011]
[1769347743543,0.3694426,88755.0,88738.0,1.50023011]
[1769347743761,1.52904696,88753.0,88731.0,0.39568932]
[1769347743960,0.01127395,88752.0,88733.0,1.50023011]
[1769347744264,0.01127395,88752.0,88734.0,1.10454079]
[1769347744775,1.17087831,88752.0,88734.0,1.10454079]
[1769347744999,1.52904696,88752.0,88734.0,1.10454079]
[1769347746172,0.01127395,88751.0,88734.0,1.10454079]
[1769347747179,1.38335346,88752.0,88734.0,1.10454079]
[1769347748111,0.3694426,88751.0,88734.0,1.10454079]
[1769347748631,0.19332277,88751.0,88734.0,1.10454079]
[1769347748846,0.19332277,88751.0,88735.0,0.00985254]
[1769347751854,0.19332277,88751.0,88735.0,0.40554186]
[1769347752197,0.19332277,88751.0,88735.0,0.39568932]
[1769347754083,0.19332277,88751.0,88735.0,1.50023011]
[1769347755229,1.01536779,88752.0,88736.0,0.38113835]
[1769347755425,1.01536779,88752.0,88736.0,0.37241286]
[1769347756266,1.01336779,88752.0,88736.0,0.37241286]
[1769347757533,1.01336779,88752.0,88727.0,0.05635208]
[1769347757534,1.01338779,88740.0,88723.0,0.37252606]
[1769347758000,1.01338779,88740.0,88724.0,0.37241286]
[1769347758560,1.01338779,88740.0,88724.0,1.51518378]
[1769347758792,1.01338779,88740.0,88725.0,0.04079779]
[1769347760788,1.01338779,88740.0,88724.0,1.51518378]
[1769347760789,1.38636338,88740.0,88724.0,1.51518378]
[1769347761181,1.38636338,88740.0,88725.0,0.00846754]
[1769347762485,1.01338779,88743.0,88725.0,0.00846754]
[1769347762664,0.37297559,88740.0,88723.0,0.0001132]
[1769347762871,1.01338779,88737.0,88723.0,0.0001132]
[1769347763915,1.01338779,88737.0,88723.0,0.00785038]
[1769347765308,1.01338779,88737.0,88723.0,0.0001132]
[1769347766931,1.01338779,88737.0,88720.0,0.00948535]
[1769347767998,1.01338779,88737.0,88720.0,0.38189821]
[1769347768232,1.01338779,88737.0,88720.0,0.37241286]
[1769347768814,0.6845157,88735.0,88714.0,0.01141907]
[1769347769070,0.17316,88744.0,88715.0,0.11996133]
[1769347769279,0.37297559,88740.0,88715.0,0.11996133]
[1769347769455,0.6845157,88737.0,88715.0,0.11996133]
[1769347769688,1.05749129,88735.0,88715.0,0.49237419]
[1769347769896,1.05749129,88735.0,88715.0,0.48401564]
[1769347770111,1.05749129,88735.0,88716.0,0.00835882]
[1769347770387,1.05749129,88735.0,88716.0,0.1199616]
[1769347770792,0.17316,88744.0,88716.0,0.1199616]
[1769347770998,0.6845157,88743.0,88716.0,0.1199616]
[1769347771200,0.37297559,88740.0,88716.0,0.1199616]
[1769347771414,0.37297559,88738.0,88716.0,0.1199616]
[1769347771616,0.6845157,88735.0,88717.0,0.11160278]
[1769347771823,0.6845157,88733.0,88717.0,0.11160278]
[1769347771990,0.6845157,88733.0,88717.0,0.11883434]
[1769347774685,0.6845157,88731.0,88717.0,0.00723156]
[1769347774881,0.6845157,88731.0,88715.0,0.37241286]
[1769347775826,0.6845157,88731.0,88714.0,0.0001469]
[1769347776028,0.39719604,88728.0,88714.0,0.0001469]
[1769347776229,1.08171174,88725.0,88714.0,0.0001469]
[1769347776558,1.08171174,88723.0,88714.0,0.0001469]
[1769347777312,0.12832902,88737.0,88714.0,4.734e-05]
[1769347777529,0.6845157,88725.0,88714.0,4.734e-05]
[1769347777728,0.39719604,88722.0,88714.0,4.734e-05]
[1769347777924,1.08171174,88721.0,88714.0,4.734e-05]
[1769347778124,0.39719604,88721.0,88714.0,4.734e-05]
[1769347781783,0.39719604,88721.0,88705.0,1.09432132]
[1769347782944,0.6845157,88720.0,88700.0,0.02165507]
[1769347783147,0.6845157,88718.0,88701.0,0.11160278]
[1769347783350,1.08171174,88718.0,88702.0,0.00843717]
[1769347784532,1.08171174,88718.0,88700.0,0.02165507]
[1769347784874,1.03101487,88718.0,88700.0,0.02165507]
[1769347785172,0.6343258,88719.0,88700.0,0.02165507]
[1769347785387,0.6343258,88715.0,88700.0,0.02165507]
[1769347785558,1.03152184,88715.0,88700.0,0.02165507]
[1769347786174,1.03152184,88715.0,88700.0,0.12572153]
[1769347786551,1.03152184,88715.0,88700.0,0.02165507]
[1769347787820,0.00014181,88720.0,88700.0,0.02165507]
[1769347787821,0.00014181,88720.0,88701.0,0.00642682]
[1769347788225,0.6343258,88717.0,88701.0,0.00642682]
[1769347788422,1.03152184,88715.0,88701.0,0.00642682]
[1769347789811,0.00014181,88720.0,88701.0,0.00642682]
[1769347790010,0.6343258,88717.0,88701.0,0.00642682]
[1769347790206,0.39719604,88714.0,88701.0,0.00642682]
[1769347790419,1.03152184,88713.0,88701.0,0.00642682]
[1769347791614,0.6343258,88712.0,88701.0,0.00642682]
[1769347793051,0.6323258,88712.0,88701.0,0.00642682]
[1769347794046,1.02952184,88712.0,88701.0,0.00642682]
[1769347794497,0.6323458,88711.0,88701.0,0.00642682]
[1769347794805,0.2882879,88711.0,88701.0,0.00642682]
[1769347795156,0.00014181,88720.0,88704.0,1.09432132]
[1769347795355,0.00014181,88720.0,88705.0,1.29561089]
[1769347795762,0.00014181,88720.0,88705.0,1.3352543]
[1769347795969,0.00014181,88720.0,88705.0,1.29561089]
[1769347799712,0.29172848,88722.0,88705.0,1.29561089]
[1769347799918,0.39719604,88721.0,88705.0,1.2957527]
[1769347801057,0.1733869,88728.0,88707.0,1.09432132]
[1769347801227,0.57058294,88728.0,88709.0,1.03787502]
[1769347801452,0.57058294,88728.0,88709.0,0.92498242]
[1769347801453,0.39719604,88727.0,88709.0,0.92498242]
[1769347801780,0.39719604,88726.0,88709.0,0.86853612]
[1769347801984,0.39719604,88726.0,88709.0,0.81208982]
[1769347802129,0.39719604,88726.0,88709.0,0.69919722]
[1769347802328,0.39719604,88726.0,88708.0,0.36120727]
[1769347802674,1.13597922,88725.0,88708.0,0.36120727]
[1769347804750,1.13397922,88725.0,88708.0,0.36120727]
[1769347806872,0.73680318,88724.0,88708.0,0.36120727]
[1769347807879,0.3669157,88723.0,88705.0,0.00014181]
[1769347808083,0.3669157,88721.0,88705.0,0.00014181]
[1769347808300,0.73680318,88725.0,88705.0,0.00014181]
[1769347808577,0.0001469,88728.0,88705.0,0.00014181]
[1769347808578,0.73680318,88721.0,88705.0,0.00014181]
[1769347808782,1.10371888,88721.0,88705.0,0.00014181]
[1769347809233,0.73680318,88721.0,88705.0,0.00014181]
[1769347809451,0.3669157,88720.0,88705.0,0.00014181]
[1769347811830,0.0001469,88728.0,88707.0,1.11124014]
[1769347812026,0.0001469,88728.0,88705.0,0.00014181]
[1769347812027,0.0001469,88728.0,88709.0,0.39080202]
[1769347812195,0.3669157,88727.0,88709.0,1.50204216]
[1769347812394,0.3669157,88726.0,88709.0,1.50204216]
[1769347812590,0.3669157,88725.0,88709.0,1.50204216]
[1769347813703,0.3669157,88725.0,88710.0,0.00834857]
[1769347815904,1.10371888,88725.0,88710.0,0.00834857]
[1769347816541,0.37588116,88724.0,88710.0,0.00834857]
[1769347816721,0.73680318,88723.0,88705.0,0.00014181]
[1769347816958,0.37588116,88722.0,88705.0,0.00014181]
[1769347817142,0.37588116,88721.0,88705.0,0.00014181]
[1769347817885,0.73680318,88720.0,88705.0,0.00014181]
[1769347818084,0.0001469,88728.0,88705.0,0.00014181]
[1769347818085,1.11268434,88719.0,88705.0,0.00014181]
[1769347819952,0.37588116,88718.0,88705.0,0.00014181]
[1769347820815,0.73680318,88718.0,88705.0,0.00014181]
[1769347820968,0.37588116,88717.0,88705.0,0.00014181]
[1769347821562,0.37588116,88716.0,88705.0,0.00014181]
[1769347821764,0.73680318,88715.0,88705.0,0.00014181]
[1769347822331,0.37588116,88716.0,88705.0,0.00014181]
[1769347823701,0.37388116,88716.0,88705.0,0.00014181]
[1769347824117,0.73680318,88720.0,88705.0,0.00014181]
[1769347825709,0.37588116,88717.0,88705.0,0.00014181]
[1769347825910,1.11268434,88716.0,88705.0,0.00014181]
[1769347826305,0.73680318,88715.0,88705.0,0.00014181]
[1769347826618,0.37588116,88714.0,88705.0,0.00014181]
[1769347826775,0.01127065,88726.0,88705.0,0.00014181]
[1769347826776,1.11268434,88712.0,88705.0,0.00014181]
[1769347833562,1.1099994,88717.0,88705.0,0.00014181]
[1769347833769,2.0395,88727.0,88706.0,1.14113702]
[1769347834019,1.7383,88725.0,88707.0,0.00950084]
[1769347834221,2.8482994,88725.0,88707.0,0.00950084]
[1769347834539,0.37319622,88723.0,88707.0,0.00950084]
[1769347835368,0.16913741,88723.0,88707.0,0.00950084]
[1769347836610,0.17324,88723.0,88710.0,1.14113702]
[1769347836814,0.17324,88723.0,88710.0,1.53848358]
[1769347837353,0.17324,88723.0,88710.0,0.39734656]
[1769347839576,0.17324,88723.0,88711.0,1.53848358]
[1769347840740,0.0001469,88728.0,88711.0,1.53848358]
[1769347840942,1.2832394,88727.0,88711.0,1.53848358]
[1769347841142,1.2832394,88727.0,88711.0,0.39734656]
[1769347841788,0.73680318,88726.0,88711.0,0.39734656]
[1769347842613,0.54643622,88727.0,88711.0,1.53848358]
[1769347842827,0.37319622,88727.0,88711.0,1.61019811]
[1769347843030,0.0001469,88728.0,88711.0,1.61019811]
[1769347843031,0.37319622,88725.0,88711.0,0.07171453]
[1769347843227,0.73680318,88724.0,88706.0,0.0083749]
[1769347843433,0.37319622,88724.0,88706.0,0.0083749]
[1769347843685,0.73680318,88723.0,88706.0,0.0083749]
[1769347843886,0.37319622,88723.0,88706.0,0.0083749]
[1769347844141,0.73680318,88722.0,88706.0,0.0083749]
[1769347846873,0.73680318,88722.0,88706.0,1.14951192]
[1769347847112,0.73680318,88722.0,88706.0,1.2527398]
[1769347848613,0.73680318,88722.0,88707.0,0.0083753]
[1769347849243,0.7966567,88722.0,88707.0,0.0083753]
[1769347849481,0.37319622,88721.0,88707.0,0.0083753]
[1769347849679,0.37319622,88721.0,88705.0,0.00014181]
[1769347849876,0.62257056,88718.0,88705.0,0.00014181]
[1769347850092,0.62243017,88714.0,88705.0,0.00014181]
[1769347850295,0.37319622,88711.0,88705.0,0.00014181]
[1769347850495,0.01127179,88717.0,88705.0,0.00014181]
[1769347850496,0.99562639,88708.0,88705.0,0.00014181]
[1769347850702,0.62243017,88707.0,88705.0,0.00014181]
[1769347851119,0.99562639,88707.0,88705.0,0.00014181]
[1769347852855,4.27,88715.0,88705.0,0.00014181]
[1769347853055,0.57163501,88711.0,88688.0,0.0085236]
[1769347853261,0.01127192,88716.0,88688.0,0.00857093]
[1769347853262,0.57163501,88707.0,88688.0,0.00857093]
[1769347853470,0.94483123,88705.0,88688.0,0.00857093]
[1769347858242,0.94483123,88705.0,88688.0,0.00019423]
[1769347858243,0.57163501,88704.0,88688.0,0.00019423]
[1769347858442,0.01127408,88699.0,88688.0,0.00019423]
[1769347858659,0.37319622,88697.0,88688.0,0.00019423]
[1769347858858,0.37319622,88693.0,88688.0,0.00019423]
[1769347862239,0.17324,88704.0,88688.0,0.00019423]
[1769347862551,0.37319622,88703.0,88688.0,0.00019423]
[1769347863626,0.38461669,88703.0,88677.0,1.5024934]
[1769347863801,0.37093574,88702.0,88677.0,1.5024934]
[1769347864185,0.37093574,88702.0,88678.0,0.00112767]
[1769347865042,0.37108264,88702.0,88678.0,0.00112767]
[1769347865478,4.27,88701.0,88678.0,0.00112767]
[1769347865691,0.38221007,88697.0,88670.0,1.4829892]
[1769347865892,0.37093574,88696.0,88671.0,0.11160278]
[1769347866391,0.37093574,88696.0,88670.0,1.4829892]
[1769347867395,0.37093574,88696.0,88673.0,0.36178066]
[1769347867543,0.37093574,88696.0,88674.0,0.37128612]
[1769347867743,0.37093574,88696.0,88675.0,1.4828423]
[1769347868217,0.37093574,88696.0,88676.0,0.01029219]
[1769347869169,0.01127433,88697.0,88676.0,0.01029219]
[1769347869401,0.01127459,88695.0,88670.0,0.0001469]
[1769347869787,0.37093574,88694.0,88670.0,0.0001469]
[1769347870874,0.37093574,88694.0,88670.0,0.01043835]
[1769347871078,0.37093574,88694.0,88671.0,0.01029151]
[1769347871594,0.38221045,88694.0,88671.0,0.01029151]
[1769347871813,0.05639433,88697.0,88661.0,0.0001469]
[1769347871814,0.01127637,88681.0,88661.0,0.0001469]
[1769347872023,4.27,88681.0,88661.0,0.0001469]
[1769347872999,4.27,88681.0,88653.0,0.0001469]
[1769347873000,4.27,88681.0,88653.0,0.0002054]
[1769347873215,0.11705977,88680.0,88653.0,0.0002054]
[1769347873556,4.27,88679.0,88653.0,0.0002054]
[1769347873760,0.37093574,88678.0,88653.0,0.0002054]
[1769347874146,0.37093574,88678.0,88653.0,0.00977175]
[1769347874348,0.3684823,88678.0,88653.0,0.02105168]
[1769347874628,0.3684823,88678.0,88653.0,0.00977175]
[1769347875059,0.14914713,88678.0,88653.0,0.00977175]
[1769347875487,0.3684823,88676.0,88653.0,0.0002054]
[1769347875721,9.22e-05,88684.0,88661.0,1.10654558]
[1769347875926,9.22e-05,88684.0,88676.0,1.44497592]
[1769347876117,9.22e-05,88684.0,88666.0,0.01127828]
[1769347876326,9.22e-05,88684.0,88667.0,0.01858737]
[1769347876525,9.22e-05,88684.0,88670.0,0.01127777]
[1769347876745,9.22e-05,88684.0,88671.0,0.00730889]
[1769347876956,9.22e-05,88684.0,88672.0,0.00843655]
[1769347877198,9.22e-05,88684.0,88673.0,0.00843646]
[1769347877405,9.22e-05,88684.0,88667.0,0.00014216]
[1769347877581,0.3685745,88684.0,88667.0,0.00014216]
[1769347878043,0.3684823,88683.0,88667.0,0.00014216]
[1769347878677,9.22e-05,88684.0,88667.0,0.00014216]
[1769347878678,9.22e-05,88684.0,88668.0,0.36522831]
[1769347878888,9.22e-05,88684.0,88669.0,0.37253736]
[1769347879091,9.22e-05,88684.0,88670.0,0.00730897]
[1769347881207,0.0001488,88702.0,88673.0,0.05638647]
[1769347881424,0.0001488,88702.0,88667.0,0.00014216]
[1769347881425,0.04512,88697.0,88675.0,1.10654558]
[1769347881632,0.04512,88697.0,88678.0,0.36522831]
[1769347882904,0.04512,88697.0,88674.0,0.00638376]
[1769347882905,0.0001488,88702.0,88680.0,0.36522831]
[1769347883130,0.0001488,88702.0,88686.0,0.01127573]
[1769347883362,0.0001488,88702.0,88689.0,0.36522831]
[1769347883570,0.0001488,88702.0,88690.0,0.36522831]
[1769347884637,0.0001488,88711.0,88693.0,1.10654558]
[1769347884838,0.0001488,88711.0,88696.0,1.10654558]
[1769347885026,0.0001488,88711.0,88696.0,1.47177389]
[1769347887084,0.0001488,88711.0,88696.0,1.10654558]
[1769347887286,0.0001488,88711.0,88697.0,0.36522831]
[1769347889473,0.0001488,88720.0,88701.0,0.01127383]
[1769347889671,0.00029085,88720.0,88701.0,0.01127383]
[1769347889934,0.00029085,88720.0,88702.0,0.36522831]
[1769347890132,0.00029085,88720.0,88704.0,1.10654558]
[1769347890343,0.00029085,88720.0,88705.0,1.10654558]
[1769347890546,0.00029085,88720.0,88708.0,0.36522831]
[1769347890698,0.00029085,88720.0,88710.0,0.36522831]
[1769347890900,0.00029085,88720.0,88703.0,0.01127357]
[1769347891068,0.00029085,88720.0,88703.0,1.10654558]
[1769347891268,0.00029085,88720.0,88707.0,1.10654558]
[1769347891269,0.00014205,88720.0,88707.0,1.10654558]
[1769347891468,0.00014205,88720.0,88709.0,0.36522831]
[1769347891908,0.00014205,88720.0,88709.0,1.10654558]
[1769347892066,0.00014205,88720.0,88708.0,0.11160278]
[1769347892067,0.00014205,88720.0,88712.0,0.36522831]
[1769347892283,0.00014205,88720.0,88714.0,0.36522831]
[1769347892489,0.00014205,88720.0,88716.0,0.36522831]
[1769347894565,0.00014205,88720.0,88717.0,0.39989955]
[1769347897914,0.0002753,88729.0,88717.0,0.39989955]
[1769347898122,0.0002753,88729.0,88710.0,0.01127268]
[1769347898123,0.2898421,88742.0,88721.0,0.39989955]
[1769347898327,0.2898421,88742.0,88722.0,0.39989955]
[1769347898518,0.2898421,88742.0,88723.0,0.11160278]
[1769347898729,0.36094656,88741.0,88723.0,0.11160278]
[1769347903537,0.36094656,88741.0,88722.0,0.39989955]
[1769347909786,0.75859359,88740.0,88722.0,0.39989955]
[1769347911840,0.75859359,88740.0,88723.0,0.39989955]
[1769347912046,0.2447221,88742.0,88726.0,1.10099248]
[1769347912265,0.2447221,88742.0,88728.0,0.28703239]
[1769347912473,0.2447221,88742.0,88728.0,1.10099248]
[1769347912643,0.2447221,88742.0,88728.0,1.38802487]
[1769347912867,0.2447221,88742.0,88728.0,1.34159129]
[1769347913075,0.2447221,88742.0,88728.0,0.94169174]
[1769347913252,0.2447221,88742.0,88731.0,0.39989955]
[1769347913484,1.15765851,88755.0,88732.0,0.39989955]
[1769347913485,0.0002221,88755.0,88732.0,0.39989955]
[1769347913683,0.21836,88760.0,88736.0,0.39989955]
[1769347913836,0.36094656,88759.0,88737.0,1.5560269]
[1769347915286,0.36094656,88759.0,88737.0,1.15612735]
[1769347915491,0.36094656,88759.0,88740.0,0.39989955]
[1769347917135,0.36294656,88759.0,88740.0,0.39989955]
[1769347917350,0.36294656,88759.0,88741.0,0.04140612]
[1769347917578,0.36094656,88759.0,88740.0,0.39989955]
[1769347918200,0.36094656,88759.0,88740.0,1.50089203]
[1769347920099,0.37221302,88759.0,88740.0,1.50089203]
[1769347920307,0.01126684,88756.0,88740.0,1.50089203]
[1769347920536,0.01126697,88755.0,88737.0,0.11160278]
[1769347920739,0.01126811,88746.0,88731.0,0.0001799]
[1769347921027,0.05633976,88748.0,88731.0,0.0001799]
[1769347921028,0.36094656,88745.0,88731.0,0.0001799]
[1769347932855,0.36094656,88745.0,88723.0,0.39989955]
[1769347932856,0.36094656,88745.0,88728.0,1.04982572]
[1769347933056,0.36094656,88745.0,88728.0,0.99339151]
[1769347933262,0.36094656,88745.0,88728.0,0.88052309]
[1769347933466,1.44177585,88745.0,88728.0,0.82408888]
[1769347933625,1.44177585,88745.0,88728.0,0.71122046]
[1769347933819,1.44177585,88745.0,88728.0,0.59835204]
[1769347934048,1.44177585,88745.0,88728.0,0.54191783]
[1769347935461,1.47245466,88745.0,88728.0,0.54191783]
[1769347939766,1.1115081,88744.0,88727.0,0.40210329]
[1769347942011,1.1115081,88744.0,88727.0,0.34566908]
[1769347942221,1.1115081,88744.0,88727.0,0.28923487]
[1769347942419,1.1115081,88744.0,88727.0,0.17636645]
[1769347942625,1.50933409,88744.0,88727.0,0.06349803]
[1769347942821,1.1115081,88744.0,88727.0,0.00706382]
[1769347943115,0.39782599,88743.0,88727.0,0.00706382]
[1769347943320,0.39782599,88741.0,88721.0,0.00014205]
[1769347943506,0.39782599,88739.0,88721.0,0.00014205]
[1769347943707,0.39782599,88739.0,88721.0,1.08495509]
[1769347943904,1.12277722,88738.0,88721.0,0.00014205]
[1769347944116,1.1115081,88733.0,88713.0,0.0002996]
[1769347944325,0.39782599,88730.0,88713.0,0.0002996]
[1769347944546,1.1115081,88727.0,88713.0,0.0002996]
[1769347944771,0.39782599,88726.0,88713.0,0.0002996]
[1769347945090,1.1115081,88725.0,88713.0,0.0002996]
[1769347946146,0.39782599,88724.0,88713.0,0.0002996]
[1769347946609,1.1115081,88724.0,88713.0,0.0002996]
[1769347946794,0.39782599,88723.0,88713.0,0.0002996]
[1769347946994,1.50933409,88723.0,88713.0,0.0002996]
[1769347950059,1.31168123,88723.0,88713.0,0.0002996]
[1769347950679,1.0638306,88723.0,88713.0,0.0002996]
[1769347950834,0.1732,88732.0,88713.0,0.0002996]
[1769347950835,0.39782599,88729.0,88713.0,0.0002996]
[1769347951037,1.1115081,88728.0,88713.0,0.0002996]
[1769347951454,1.1115081,88728.0,88713.0,0.00885738]
[1769347951648,1.1115081,88728.0,88713.0,0.0002996]
[1769347957205,1.06589318,88727.0,88713.0,0.0002996]
[1769347957377,1.06589318,88726.0,88713.0,0.0002996]
[1769347957553,1.06589318,88724.0,88713.0,0.0002996]
[1769347957760,1.06589318,88722.0,88713.0,0.0002996]
[1769347965947,0.39390772,88728.0,88713.0,0.0002996]
[1769347966087,1.06589318,88727.0,88713.0,0.0002996]
[1769347966836,0.39390772,88728.0,88713.0,0.0002996]
[1769347966837,0.00014208,88733.0,88713.0,0.0002996]
[1769347966974,0.17324,88728.0,88715.0,1.10714421]
[1769347967177,0.17324,88728.0,88717.0,0.20829969]
[1769347967373,0.17324,88728.0,88717.0,0.15185905]
[1769347967641,0.17324,88728.0,88717.0,0.03897777]
[1769347967846,0.00014208,88733.0,88717.0,0.03897777]
[1769347968069,0.00014208,88733.0,88720.0,1.10714421]
[1769347968201,0.00014208,88733.0,88724.0,1.10714421]
[1769347972889,0.39390772,88744.0,88726.0,1.10714421]
[1769347973102,0.17324,88740.0,88728.0,1.10714421]
[1769347973528,0.17324,88740.0,88728.0,1.10706555]
[1769347974318,0.17324,88740.0,88727.0,0.39066097]
[1769347974673,0.17324,88740.0,88723.0,1.10714421]
[1769347976680,0.17324,88740.0,88723.0,1.49780518]
[1769347979257,0.17324,88740.0,88723.0,0.39066097]
[1769347979466,0.17324,88740.0,88724.0,1.11576286]
[1769347979669,0.17324,88740.0,88724.0,1.10714421]
[1769347982962,1.33454595,88740.0,88724.0,1.10714421]
[1769347986840,0.1732,88742.0,88726.0,1.07253133]
[1769347987049,0.1732,88742.0,88729.0,0.40700221]
[1769347987261,0.1732,88742.0,88729.0,1.47634397]
[1769347987845,0.00047367,88744.0,88729.0,0.40373396]
[1769347988143,0.00047367,88744.0,88722.0,0.0001316]
[1769347988144,0.00047367,88744.0,88733.0,0.40700221]
[1769347989184,0.00047367,88744.0,88735.0,0.40700221]
[1769347989402,0.00047367,88744.0,88724.0,0.0112709]
[1769347989403,0.1732,88756.0,88738.0,1.07253133]
[1769347989599,0.56638395,88756.0,88738.0,1.07253133]
[1769347989825,0.39318395,88755.0,88738.0,1.07253133]
[1769347990038,0.39318395,88755.0,88738.0,1.14520401]
[1769347991601,0.39318395,88755.0,88738.0,1.07253133]
[1769347991962,0.39318395,88755.0,88738.0,0.40700221]
[1769347992140,0.1732,88759.0,88741.0,1.07253133]
[1769347992338,0.17334202,88759.0,88741.0,1.07253133]
[1769347992560,0.39318395,88757.0,88741.0,1.07253133]
[1769347992763,1.5544899,88757.0,88741.0,1.07253133]
[1769347995164,1.5534899,88757.0,88741.0,1.07253133]
[1769347995384,1.32657153,88757.0,88741.0,1.07253133]
[1769347995854,1.32657153,88757.0,88741.0,1.12496067]
[1769347997358,0.00014202,88759.0,88741.0,1.12496067]
[1769347997532,0.00014202,88759.0,88744.0,0.40024044]
[1769347997745,0.00014202,88759.0,88742.0,0.40024044]
[1769348001014,0.3881547,88757.0,88729.0,0.1732]
[1769348001214,1.14203443,88754.0,88730.0,1.09642951]
[1769348001387,0.00014202,88759.0,88732.0,0.40024044]
[1769348001594,0.00014202,88759.0,88735.0,1.09642951]
[1769348001947,0.00014202,88759.0,88739.0,1.09642951]
[1769348002238,0.00014202,88759.0,88741.0,0.40024044]
[1769348002439,1.14217645,88759.0,88741.0,0.40024044]
[1769348003812,1.14167645,88759.0,88741.0,0.40024044]
[1769348005974,1.14167645,88759.0,88741.0,0.39974044]
[1769348007476,0.9687381,88759.0,88741.0,0.39974044]
[1769348008362,0.9687381,88759.0,88742.0,0.01892008]
[1769348008526,0.9687381,88759.0,88741.0,0.39974044]
[1769348009746,1.3568928,88759.0,88741.0,0.39974044]
[1769348012221,1.3558928,88759.0,88741.0,0.39974044]
[1769348012877,1.3558928,88759.0,88742.0,1.09642951]
[1769348013041,0.0002444,88761.0,88744.0,1.07152214]
[1769348013237,0.00036705,88761.0,88744.0,1.07152214]
[1769348013626,0.00036705,88761.0,88746.0,0.38085486]
[1769348013826,0.00036705,88761.0,88747.0,1.452377]
[1769348014039,0.00036705,88761.0,88748.0,1.07152214]
[1769348014444,0.00036705,88761.0,88750.0,0.58631078]
[1769348015307,0.00036705,88761.0,88749.0,0.26801315]
[1769348018472,0.00036705,88761.0,88745.0,1.07152214]
[1769348021796,0.00036705,88761.0,88749.0,1.07152214]
[1769348022031,0.00036705,88761.0,88751.0,1.07152214]
[1769348022188,0.00036705,88761.0,88751.0,1.452377]
[1769348024159,0.39227645,88772.0,88751.0,1.452377]
[1769348024362,1.13389008,88771.0,88751.0,1.452377]
[1769348024564,1.52616653,88770.0,88752.0,0.11160278]
[1769348026112,1.52616653,88770.0,88753.0,0.38085486]
[1769348026325,1.52616653,88770.0,88754.0,1.07152214]
[1769348028278,0.00010129,88772.0,88745.0,0.01126824]
[1769348028503,0.00010129,88772.0,88747.0,1.07152214]
[1769348028717,0.00010129,88772.0,88749.0,1.07152214]
[1769348028933,0.00010129,88772.0,88751.0,1.07152214]
[1769348030873,0.00010129,88772.0,88753.0,1.07152214]
[1769348031088,0.00010129,88772.0,88753.0,1.452377]
[1769348031508,1.52626782,88772.0,88753.0,1.452377]
[1769348031715,0.39227645,88771.0,88753.0,1.56397978]
[1769348034144,0.39227645,88771.0,88753.0,1.18312492]
[1769348034345,0.39227645,88769.0,88753.0,1.18312492]
[1769348035200,0.39227645,88769.0,88753.0,0.49245764]
[1769348035428,0.39227645,88769.0,88753.0,1.56397978]
[1769348035948,0.39227645,88769.0,88754.0,1.07377307]
[1769348036158,0.39227645,88769.0,88754.0,1.07152214]